bitfinex/quotes_SOLUSD_20241118
["timestamp","ask_amount","ask_price","bid_price","bid_amount"]
[1731972403291,12.69466415,238.0,237.92,12.69466415]
[1731972403484,41.95466415,238.08,237.96,12.69466415]
[1731972403485,12.69466415,238.04,237.96,12.69466415]
[1731972404097,16.89536415,238.06,237.96,12.69466415]
[1731972404272,16.89536415,238.06,237.98,12.69466415]
[1731972404773,12.69466415,238.06,237.98,12.69466415]
[1731972404977,4.1995,238.13,238.02,12.69466415]
[1731972405180,12.69466415,238.11,238.02,12.69466415]
[1731972405995,12.69466415,238.11,238.04,12.69466415]
[1731972406166,6.35497925,238.26,238.08,12.69466415]
[1731972406167,24.8281,238.2,238.08,12.69466415]
[1731972406369,12.69466415,238.17,238.08,12.69466415]
[1731972406566,12.69466415,238.19,238.1,12.69466415]
[1731972406765,12.69466415,238.19,238.02,0.5]
[1731972406766,12.69466415,238.19,238.12,12.69466415]
[1731972407382,12.69466415,238.17,238.08,12.69466415]
[1731972407673,12.69466415,238.13,238.06,12.69466415]
[1731972407873,12.69466415,238.11,238.02,12.69466415]
[1731972408376,20.32192509,238.1,238.02,20.32192509]
[1731972411496,20.32192509,238.12,238.04,20.32192509]
[1731972411704,20.32192509,238.13,238.06,20.32192509]
[1731972411882,27.58132509,238.2,238.09,20.32192509]
[1731972411883,20.32192509,238.16,238.09,20.32192509]
[1731972412806,20.32192509,238.17,238.09,20.32192509]
[1731972413704,20.32192509,238.2,238.13,20.32192509]
[1731972413913,20.32192509,238.2,238.03,0.5]
[1731972413914,20.32192509,238.21,238.14,20.32192509]
[1731972414811,20.32192509,238.21,238.12,20.32192509]
[1731972415311,20.32192509,238.19,238.12,20.32192509]
[1731972415516,20.32192509,238.21,238.12,20.32192509]
[1731972417915,20.32192509,238.21,238.14,20.32192509]
[1731972419913,20.32192509,238.23,238.14,20.32192509]
[1731972420116,20.32192509,238.23,238.16,20.32192509]
[1731972420307,24.51922509,238.25,238.16,20.32192509]
[1731972420711,20.32192509,238.25,238.16,20.32192509]
[1731972421320,20.32192509,238.27,238.2,20.32192509]
[1731972421498,20.32192509,238.23,238.14,20.32192509]
[1731972421688,20.32192509,238.21,238.14,20.32192509]
[1731972421890,20.32192509,238.21,238.12,20.32192509]
[1731972422493,20.32192509,238.23,238.14,20.32192509]
[1731972422901,20.32192509,238.25,238.16,20.32192509]
[1731972423717,20.32192509,238.25,238.18,20.32192509]
[1731972424121,20.32192509,238.27,238.18,20.32192509]
[1731972424412,24.51882509,238.27,238.18,20.32192509]
[1731972424625,24.51882509,238.27,238.11,7.1728]
[1731972424626,20.32192509,238.29,238.2,20.32192509]
[1731972425096,20.32192509,238.29,238.22,20.32192509]
[1731972426815,47.06102509,238.31,238.22,20.32192509]
[1731972426994,51.25722509,238.31,238.22,20.32192509]
[1731972429609,20.32192509,238.29,238.22,20.32192509]
[1731972429804,20.32192509,238.29,238.18,20.32192509]
[1731972429805,20.32192509,238.25,238.18,20.32192509]
[1731972430005,20.32192509,238.21,238.14,20.32192509]
[1731972430311,20.32192509,238.21,238.11,7.1728]
[1731972430312,12.69027962,238.21,238.13,12.69027962]
[1731972430511,12.69027962,238.19,238.13,12.69027962]
[1731972431319,12.69027962,238.19,238.11,19.86307962]
[1731972431712,12.69027962,238.19,238.11,12.69027962]
[1731972432110,12.69027962,238.17,238.1,18.1887]
[1731972433018,12.69027962,238.17,238.09,12.69027962]
[1731972433429,12.69027962,238.17,238.07,12.69027962]
[1731972433606,12.69027962,238.15,238.07,12.69027962]
[1731972434805,0.5,238.24,238.05,31.28137962]
[1731972434806,12.69027962,238.13,238.05,31.28137962]
[1731972435421,12.69027962,238.11,238.03,12.69027962]
[1731972435626,12.69027962,238.11,238.01,12.69027962]
[1731972436318,2.77,238.14,238.01,12.69027962]
[1731972436319,12.69027962,238.09,238.01,12.69027962]
[1731972437245,12.69027962,238.09,237.99,30.66057962]
[1731972437422,12.69027962,238.07,237.99,12.69027962]
[1731972439444,12.69027962,238.08,237.97,23.776884]
[1731972439648,12.69027962,238.07,237.98,12.69027962]
[1731972439945,12.69027962,238.05,237.98,12.69027962]
[1731972442552,12.69027962,238.07,237.98,12.69027962]
[1731972449858,12.69027962,238.05,237.98,12.69027962]
[1731972450233,4.1995,238.12,237.94,30.77587962]
[1731972450234,12.69027962,238.03,237.94,30.77587962]
[1731972450583,12.69027962,238.01,237.94,30.77587962]
[1731972451561,12.69027962,238.01,237.94,18.0856]
[1731972452784,12.69027962,238.03,237.94,18.0856]
[1731972453160,12.69027962,238.03,237.95,12.69027962]
[1731972453361,12.69027962,238.05,237.97,12.69027962]
[1731972454187,12.69027962,238.09,238.01,12.69027962]
[1731972454876,12.69027962,238.07,237.99,12.69027962]
[1731972455275,12.69027962,238.07,237.94,18.0856]
[1731972455276,12.69027962,238.05,237.97,12.69027962]
[1731972458594,24.5692,238.14,238.03,12.69027962]
[1731972458595,12.69027962,238.11,238.03,12.69027962]
[1731972459563,12.69027962,238.13,238.05,12.69027962]
[1731972459990,12.69027962,238.13,237.99,7.1897]
[1731972459991,12.69027962,238.15,238.07,12.69027962]
[1731972460188,12.69027962,238.15,238.06,12.69027962]
[1731972460389,4.1989,238.16,237.99,7.6897]
[1731972460390,12.69027962,238.13,238.05,12.69027962]
[1731972464688,12.69027962,238.14,238.07,12.69027962]
[1731972464883,12.69027962,238.16,238.09,12.69027962]
[1731972465682,12.69027962,238.18,238.11,12.69027962]
[1731972465873,12.69027962,238.19,238.11,12.69027962]
[1731972466188,12.69027962,238.17,238.1,12.69027962]
[1731972466390,4.1981,238.2,238.08,12.69027962]
[1731972466391,12.69027962,238.16,238.08,12.69027962]
[1731972467187,12.69027962,238.17,238.09,12.69027962]
[1731972469168,16.88877962,238.18,238.1,12.69027962]
[1731972469598,12.69027962,238.18,238.1,12.69027962]
[1731972470372,15.6255,238.25,238.01,19.45582759]
[1731972470373,4.1976,238.23,238.12,12.69027962]
[1731972470697,12.69027962,238.2,238.12,12.69027962]
[1731972471498,12.69027962,238.2,238.12,12.19027962]
[1731972472694,16.88847962,238.2,238.12,12.19027962]
[1731972473081,12.69027962,238.19,238.12,12.19027962]
[1731972474280,8.12283881,238.18,238.11,8.12283881]
[1731972475271,8.12283881,238.18,238.06,20.0]
[1731972475594,8.12283881,238.16,238.08,8.12283881]
[1731972475976,12.32133881,238.18,238.1,8.12283881]
[1731972476174,8.12283881,238.18,238.1,8.12283881]
[1731972476379,15.6255,238.25,238.12,8.12283881]
[1731972476380,12.32103881,238.2,238.12,8.12283881]
[1731972479710,8.12283881,238.2,238.13,8.12283881]
[1731972480203,8.12283881,238.18,238.01,18.95582759]
[1731972480377,4.1981,238.2,238.01,18.95582759]
[1731972480378,8.12283881,238.17,238.09,8.12283881]
[1731972480579,8.12283881,238.17,238.1,8.12283881]
[1731972481389,26.6187,238.25,238.03,0.09367462]
[1731972481390,8.12283881,238.19,238.11,8.12283881]
[1731972481999,26.1187,238.25,238.14,8.12283881]
[1731972482204,4.1974,238.24,238.15,8.12283881]
[1731972482511,12.32023881,238.24,238.16,8.12283881]
[1731972483207,8.12283881,238.19,238.02,0.12549]
[1731972483414,8.12283881,238.17,238.1,8.12283881]
[1731972483599,8.12283881,238.19,238.1,8.12283881]
[1731972484007,8.12283881,238.19,238.12,8.12283881]
[1731972485307,12.32113881,238.19,238.12,8.12283881]
[1731972485821,12.32113881,238.19,238.03,0.09367462]
[1731972485822,4.1974,238.24,238.17,8.12283881]
[1731972486112,8.12283881,238.2,238.06,15.6094]
[1731972486413,15.6255,238.25,238.1,8.12283881]
[1731972486414,8.12283881,238.18,238.1,8.12283881]
[1731972486588,8.12283881,238.11,238.01,20.0]
[1731972486916,8.12283881,238.11,238.0,15.6094]
[1731972487217,8.12283881,238.09,238.02,8.12283881]
[1731972487392,17.158,238.17,238.04,8.12283881]
[1731972487709,17.158,238.17,237.96,47.49135524]
[1731972487710,8.12283881,238.15,238.06,8.12283881]
[1731972487897,8.12283881,238.13,238.04,8.12283881]
[1731972488107,8.12283881,238.13,237.96,47.49135524]
[1731972488108,8.12283881,238.11,238.02,8.12283881]
[1731972488702,4.1999,238.1,238.02,8.12283881]
[1731972489627,8.12283881,238.09,238.02,8.12283881]
[1731972489929,21.3567,238.17,238.08,8.12283881]
[1731972490222,12.69456322,238.16,238.08,12.69456322]
[1731972490616,16.89356322,238.16,238.08,12.69456322]
[1731972491927,4.199,238.16,238.08,12.69456322]
[1731972492719,17.158,238.17,238.08,12.69456322]
[1731972495637,12.69456322,238.18,238.1,12.69456322]
[1731972497529,12.69456322,238.2,238.12,12.69456322]
[1731972500050,16.1695,238.22,238.12,12.69456322]
[1731972500233,12.69456322,238.24,238.16,12.69456322]
[1731972500643,12.69456322,238.26,238.18,12.69456322]
[1731972501024,33.71326322,238.28,238.2,12.69456322]
[1731972501238,29.51656322,238.28,238.2,12.69456322]
[1731972501447,12.69456322,238.28,238.2,12.69456322]
[1731972502025,12.69456322,238.28,238.22,12.69456322]
[1731972502339,12.69456322,238.3,238.22,12.69456322]
[1731972502540,12.69456322,238.29,238.22,12.69456322]
[1731972502852,12.69456322,238.31,238.23,12.69456322]
[1731972503025,12.69456322,238.3,238.22,12.69456322]
[1731972503652,12.69456322,238.31,238.23,12.69456322]
[1731972504170,12.69456322,238.3,238.23,12.69456322]
[1731972505478,12.69456322,238.26,238.16,20.34465462]
[1731972505676,12.69456322,238.22,238.15,16.8914]
[1731972505852,12.69456322,238.2,238.13,12.69456322]
[1731972507074,12.69456322,238.24,238.15,12.69456322]
[1731972507278,12.69456322,238.24,238.17,12.69456322]
[1731972507584,12.69456322,238.24,238.15,12.69456322]
[1731972508375,12.69456322,238.26,238.17,12.69456322]
[1731972510462,12.69456322,238.24,238.15,12.69456322]
[1731972513359,12.59357592,238.24,238.15,12.69456322]
[1731972515979,12.59357592,238.24,238.16,0.12549]
[1731972517362,12.69456322,238.26,238.17,12.69456322]
[1731972517767,12.69456322,238.26,238.18,0.12549]
[1731972517968,12.69456322,238.26,238.19,12.69456322]
[1731972519190,12.69456322,238.26,238.18,0.12549]
[1731972519594,12.69456322,238.22,238.14,12.69456322]
[1731972520873,12.69456322,238.22,238.14,0.12549]
[1731972521771,12.69456322,238.18,238.04,16.7634]
[1731972521967,12.69456322,238.14,238.06,12.69456322]
[1731972522194,12.69456322,238.14,238.04,16.7634]
[1731972522195,12.69456322,238.14,238.04,29.45796322]
[1731972522504,12.69456322,238.12,238.04,29.45796322]
[1731972522677,12.69456322,238.12,238.04,12.69456322]
[1731972523073,12.69456322,238.12,238.02,12.69456322]
[1731972523272,12.69456322,238.1,238.02,12.69456322]
[1731972526900,12.69456322,238.1,237.97,23.902374]
[1731972526901,12.69456322,238.08,237.97,23.902374]
[1731972527112,12.69456322,238.08,237.96,21.4648]
[1731972527113,12.69456322,238.08,237.99,20.0]
[1731972527610,12.69456322,238.08,238.0,12.69456322]
[1731972527798,12.69456322,238.1,238.02,12.69456322]
[1731972529513,16.89416322,238.12,238.04,12.69456322]
[1731972530512,12.69456322,238.12,238.04,12.69456322]
[1731972531601,12.69456322,238.14,238.06,12.69456322]
[1731972533593,12.69456322,238.14,238.08,12.69456322]
[1731972534516,16.89346322,238.16,238.08,12.69456322]
[1731972536998,12.69456322,238.13,238.06,12.69456322]
[1731972537318,12.69456322,238.14,238.07,12.69456322]
[1731972537813,12.69456322,238.13,238.05,12.69456322]
[1731972539219,12.69456322,238.11,238.03,12.69456322]
[1731972540200,8.12833124,238.1,238.03,8.12833124]
[1731972540530,8.12833124,238.12,238.03,8.12833124]
[1731972540943,4.1988,238.16,237.97,0.09367462]
[1731972540944,8.12833124,238.14,238.05,8.12833124]
[1731972541114,4.1988,238.16,238.07,8.12833124]
[1731972541431,12.32713124,238.16,238.07,8.12833124]
[1731972542430,4.1988,238.16,238.07,8.12833124]
[1731972542743,12.32713124,238.16,238.02,20.34465462]
[1731972543033,12.32713124,238.16,238.08,8.12833124]
[1731972546619,8.12833124,238.14,238.06,8.12833124]
[1731972547743,12.32763124,238.14,238.06,8.12833124]
[1731972552543,12.71571493,237.96,237.88,12.71571493]
[1731972553136,4.2017,238.0,237.87,12.0339605]
[1731972553137,12.71571493,237.98,237.9,12.71571493]
[1731972553724,12.71571493,238.0,237.92,12.71571493]
[1731972555623,16.844,238.02,237.96,12.71571493]
[1731972555941,6.2641,238.07,237.96,12.71571493]
[1731972555942,16.91661493,238.05,237.96,12.71571493]
[1731972556136,16.91661493,238.05,237.98,12.71571493]
[1731972556449,12.71571493,238.05,237.98,12.71571493]
[1731972557723,18.97981493,238.07,238.0,12.71571493]
[1731972559526,12.71571493,238.09,238.0,12.71571493]
[1731972560151,12.71571493,238.11,238.02,12.71571493]
[1731972560334,12.71571493,238.11,238.04,12.71571493]
[1731972560536,12.71571493,238.13,238.04,12.71571493]
[1731972560961,12.71571493,238.13,238.06,12.71571493]
[1731972561329,193.81071493,238.2,237.96,36.99259893]
[1731972561330,12.71571493,238.17,238.09,12.71571493]
[1731972562147,12.71571493,238.2,238.13,12.71571493]
[1731972563463,22.8784,238.26,238.13,12.71571493]
[1731972563757,12.71571493,238.21,238.13,12.71571493]
[1731972564839,12.71571493,238.23,238.15,12.71571493]
[1731972565445,12.71571493,238.23,238.17,12.71571493]
[1731972565638,12.71571493,238.28,238.21,12.71571493]
[1731972565841,12.71571493,238.28,238.09,0.09367462]
[1731972565842,12.71571493,238.25,238.17,12.71571493]
[1731972566140,4.1964,238.3,238.11,12.71571493]
[1731972566141,12.71571493,238.19,238.11,12.71571493]
[1731972566333,12.71571493,238.15,238.07,12.71571493]
[1731972566532,12.71571493,238.13,238.07,12.71571493]
[1731972567032,12.71571493,238.15,238.07,12.71571493]
[1731972567642,12.71571493,238.17,238.09,12.71571493]
[1731972567836,12.71571493,238.17,238.1,20.0]
[1731972568967,12.71571493,238.17,238.08,20.0]
[1731972569257,12.71571493,238.15,238.08,20.0]
[1731972571471,12.71571493,238.11,238.01,12.71571493]
[1731972571646,4.199,238.15,238.01,12.71571493]
[1731972571647,12.71571493,238.09,238.01,12.71571493]
[1731972571841,12.71571493,238.09,238.02,0.09367462]
[1731972572751,12.71571493,238.09,238.02,0.34465462]
[1731972573083,12.71571493,238.09,238.01,12.71571493]
[1731972573262,12.71571493,238.09,238.02,0.09367462]
[1731972573764,12.71571493,238.09,238.02,20.09367462]
[1731972574465,12.71571493,238.09,238.03,0.12549]
[1731972574769,12.71571493,238.11,238.03,12.84120493]
[1731972574971,12.71571493,238.11,238.04,20.0]
[1731972575655,12.71571493,238.15,238.05,36.83725355]
[1731972576174,12.71571493,238.17,238.09,12.71571493]
[1731972576478,12.71571493,238.19,238.1,20.21916462]
[1731972576854,12.71571493,238.19,238.12,20.12549]
[1731972577067,12.71571493,238.23,238.15,12.84120493]
[1731972579078,12.71571493,238.23,238.16,0.21916462]
[1731972579383,12.71571493,238.25,238.17,12.84120493]
[1731972579568,12.71571493,238.25,238.11,20.0]
[1731972579569,12.71571493,238.29,238.19,12.84120493]
[1731972579771,12.71571493,238.29,238.2,20.0]
[1731972579973,12.71571493,238.29,238.21,12.71571493]
[1731972580375,12.71571493,238.33,238.25,12.71571493]
[1731972581063,12.71571493,238.27,238.2,20.0]
[1731972581259,12.71571493,238.32,238.1,15.9171]
[1731972581260,12.71571493,238.22,238.1,15.9171]
[1731972581492,12.71571493,238.22,238.13,12.71571493]
[1731972581663,12.71571493,238.2,238.1,15.9171]
[1731972581860,12.71571493,238.18,238.1,28.63281493]
[1731972582087,16.052,238.27,238.13,0.09367462]
[1731972582088,12.71571493,238.22,238.13,0.09367462]
[1731972582664,12.71571493,238.2,238.12,12.71571493]
[1731972582871,12.71571493,238.2,238.1,28.63281493]
[1731972583070,12.71571493,238.2,238.11,0.25098]
[1731972583883,12.71571493,238.22,238.14,12.71571493]
[1731972584293,12.71571493,238.24,238.16,12.71571493]
[1731972584465,20.249,238.27,238.13,0.12549]
[1731972584466,12.71571493,238.22,238.13,0.12549]
[1731972584671,12.71571493,238.22,238.13,0.25098]
[1731972585483,12.71571493,238.14,238.04,15.9171]
[1731972585683,12.71571493,238.16,238.06,12.71571493]
[1731972585895,12.71571493,238.16,238.09,0.09367462]
[1731972586073,12.71571493,238.16,238.08,12.71571493]
[1731972588395,12.71571493,238.18,238.1,12.71571493]
[1731972588990,12.71571493,238.2,238.12,32.71571493]
[1731972589198,12.71571493,238.22,238.14,12.71571493]
[1731972592277,16.91321493,238.24,238.16,12.71571493]
[1731972593785,2.77,238.17,238.16,12.71571493]
[1731972594174,2.77,238.17,238.14,12.71571493]
[1731972596096,2.77,238.17,238.13,20.0]
[1731972596276,2.77,238.17,238.13,0.12549]
[1731972596472,12.71571493,238.16,238.09,0.25098]
[1731972597872,4.1989,238.16,238.09,20.0]
[1731972598195,12.71571493,238.14,238.06,12.71571493]
[1731972598373,12.71571493,238.16,238.07,0.09367462]
[1731972598981,2.77,238.17,238.06,12.71571493]
[1731972598982,12.71571493,238.14,238.06,12.71571493]
[1731972599178,12.71571493,238.12,238.06,0.09367462]
[1731972599785,12.71571493,238.12,238.05,0.12549]
[1731972600305,12.71571493,238.14,238.05,20.12549]
[1731972600500,2.77,238.17,238.1,0.09367462]
[1731972600812,2.77,238.17,238.11,0.12549]
[1731972601013,15.48571493,238.17,238.11,0.12549]
[1731972604304,12.71571493,238.23,238.14,12.71571493]
[1731972604523,12.71571493,238.23,238.15,20.12549]
[1731972604716,6.3244,238.3,238.18,12.71571493]
[1731972604717,12.71571493,238.25,238.18,12.71571493]
[1731972605213,12.71571493,238.25,238.19,0.12549]
[1731972605709,12.71571493,238.31,238.23,20.12549]
[1731972605910,12.71571493,238.27,238.21,0.12549]
[1731972606492,12.71571493,238.27,238.21,20.12549]
[1731972606691,12.71571493,238.23,238.07,6.9366]
[1731972607012,12.71571493,238.17,238.08,12.71571493]
[1731972607210,12.71571493,238.19,238.11,0.09367462]
[1731972607412,12.71571493,238.21,238.13,0.09367462]
[1731972607707,12.71571493,238.21,238.15,0.09367462]
[1731972608016,25.70599418,238.32,238.17,20.25098]
[1731972608017,4.1968,238.28,238.17,20.25098]
[1731972608188,12.71571493,238.26,238.17,20.25098]
[1731972608709,12.71571493,238.29,238.21,12.71571493]
[1731972608914,12.71571493,238.27,238.19,12.71571493]
[1731972609307,12.71571493,238.29,238.21,12.93487955]
[1731972609505,12.71571493,238.31,238.22,20.12549]
[1731972609912,12.71571493,238.33,238.26,0.12549]
[1731972610087,12.71571493,238.31,238.2,23.776884]
[1731972610414,12.71571493,238.27,238.22,20.0]
[1731972610921,12.71571493,238.32,238.25,12.71571493]
[1731972611220,12.71571493,238.3,238.22,20.12549]
[1731972611518,12.71571493,238.28,238.2,20.25098]
[1731972611820,12.71571493,238.3,238.22,20.12549]
[1731972612398,12.71571493,238.28,238.22,20.0]
[1731972613520,4.1959,238.33,238.23,0.12549]
[1731972613521,12.71571493,238.3,238.23,0.12549]
[1731972614413,12.71571493,238.3,238.21,12.71571493]
[1731972614616,12.71571493,238.28,238.2,20.0]
[1731972615505,12.71571493,238.28,238.22,0.09367462]
[1731972615694,12.71571493,238.3,238.23,20.12549]
[1731972615908,12.71571493,238.32,238.24,12.71571493]
[1731972617008,12.71571493,238.32,238.25,20.12549]
[1731972617413,12.71571493,238.34,238.25,20.12549]
[1731972617618,12.71571493,238.34,238.26,12.71571493]
[1731972617818,12.71571493,238.32,238.25,0.12549]
[1731972618022,12.71571493,238.28,238.2,12.71571493]
[1731972618213,12.71571493,238.26,238.19,0.12549]
[1731972619567,12.71571493,238.26,238.19,20.25098]
[1731972620061,12.71571493,238.28,238.2,12.71571493]
[1731972620367,12.71571493,238.26,238.19,20.25098]
[1731972620538,12.71571493,238.22,238.13,6.9114]
[1731972620867,12.71571493,238.18,238.09,29.34201493]
[1731972621158,12.71571493,238.18,238.1,0.09367462]
[1731972621377,12.71571493,238.22,238.14,0.09367462]
[1731972621548,12.71571493,238.22,238.15,12.71571493]
[1731972622059,12.71571493,238.22,238.14,0.34465462]
[1731972622263,12.71571493,238.24,238.16,20.12549]
[1731972622840,12.71571493,238.24,238.17,12.71571493]
[1731972624666,12.71571493,238.26,238.17,12.71571493]
[1731972625166,4.1962,238.31,238.21,12.71571493]
[1731972625167,12.71571493,238.28,238.21,12.71571493]
[1731972625851,12.71571493,238.32,238.24,0.12549]
[1731972626234,12.71571493,238.32,238.23,12.71571493]
[1731972626435,12.71571493,238.3,238.23,12.71571493]
[1731972627443,12.71571493,238.32,238.24,20.34465462]
[1731972627644,12.71571493,238.32,238.25,12.71571493]
[1731972627951,12.71571493,238.34,238.27,12.71571493]
[1731972628152,6.35497925,238.36,238.28,0.12549]
[1731972628153,12.71571493,238.36,238.28,0.12549]
[1731972628359,12.71571493,238.36,238.29,12.71571493]
[1731972628750,6.35497925,238.37,238.29,12.71571493]
[1731972629448,12.71571493,238.36,238.29,12.71571493]
[1731972630245,12.71571493,238.36,238.28,0.12549]
[1731972631266,12.71571493,238.34,238.26,0.25098]
[1731972631470,12.71571493,238.34,238.25,12.71571493]
[1731972632851,12.71571493,238.34,238.26,0.34465462]
[1731972633167,12.71571493,238.34,238.27,12.71571493]
[1731972634770,12.71571493,238.36,238.27,12.71571493]
[1731972635347,12.71571493,238.36,238.28,6.8436]
[1731972636162,12.71571493,238.34,238.28,6.8436]
[1731972636872,12.71571493,238.34,238.26,0.12549]
[1731972636873,12.71571493,238.29,238.22,6.7157]
[1731972637552,12.71571493,238.27,238.22,6.7157]
[1731972637953,12.71571493,238.29,238.22,6.7157]
[1731972638360,12.71571493,238.31,238.23,12.80938955]
[1731972639078,12.71571493,238.35,238.27,12.71571493]
[1731972641274,12.71571493,238.35,238.23,44.12153862]
[1731972641463,12.71571493,238.33,238.27,20.0]
[1731972641654,12.71571493,238.31,238.23,24.12153862]
[1731972642049,12.71571493,238.33,238.24,12.71571493]
[1731972642290,12.71571493,238.33,238.26,12.71571493]
[1731972642772,12.71571493,238.35,238.26,12.71571493]
[1731972643156,4.1954,238.36,238.26,12.71571493]
[1731972643157,12.71571493,238.33,238.26,12.71571493]
[1731972643355,12.71571493,238.35,238.26,12.71571493]
[1731972643764,12.71571493,238.35,238.27,20.0]
[1731972643968,12.71571493,238.35,238.28,12.71571493]
[1731972645766,12.71571493,238.35,238.26,12.71571493]
[1731972646063,12.71571493,238.35,238.27,20.0]
[1731972647071,6.35497925,238.38,238.3,12.71571493]
[1731972647248,38.12987552,238.46,238.24,20.0]
[1731972647249,6.35497925,238.41,238.34,12.71571493]
[1731972647866,12.71571493,238.4,238.32,12.71571493]
[1731972648661,19.07069418,238.4,238.32,12.71571493]
[1731972649276,12.71571493,238.4,238.32,12.71571493]
[1731972649965,19.07069418,238.42,238.34,12.71571493]
[1731972650165,6.35497925,238.43,238.34,12.71571493]
[1731972650371,12.71571493,238.4,238.32,18.97741493]
[1731972650570,19.07069418,238.42,238.34,12.71571493]
[1731972650883,6.35497925,238.42,238.36,12.71571493]
[1731972651367,6.35497925,238.42,238.38,12.71571493]
[1731972651764,6.35497925,238.43,238.4,12.71571493]
[1731972652161,6.35497925,238.43,238.42,12.71571493]
[1731972652361,6.35497925,238.43,238.42,32.71571493]
[1731972652783,6.35497925,238.43,238.42,56.83725355]
[1731972652962,6.35497925,238.43,238.42,63.10075355]
[1731972653973,6.35497925,238.43,238.42,75.81646848]
[1731972654173,12.7099585,238.51,238.43,44.12153862]
[1731972654376,12.7099585,238.51,238.5,12.71571493]
[1731972654686,12.7099585,238.51,238.5,32.71571493]
[1731972654870,12.7099585,238.51,238.5,56.71176355]
[1731972655075,12.7099585,238.51,238.5,74.00095355]
[1731972655275,38.12987552,238.58,238.51,44.12153862]
[1731972655476,50.83983403,238.6,238.5,29.97308955]
[1731972655477,50.83983403,238.6,238.54,63.10075355]
[1731972656193,50.83983403,238.6,238.54,18.97921493]
[1731972656371,63.55554896,238.6,238.54,6.2635]
[1731972656775,12.71571493,238.58,238.51,20.0]
[1731972657887,12.71571493,238.6,238.52,12.71571493]
[1731972658391,12.71571493,238.58,238.51,20.0]
[1731972658691,12.71571493,238.54,238.46,12.71571493]
[1731972659791,12.71571493,238.56,238.48,12.71571493]
[1731972660479,17.3172,238.61,238.46,12.71571493]
[1731972660480,2.77,238.53,238.46,12.71571493]
[1731972660681,12.71571493,238.52,238.45,43.776884]
[1731972661283,2.77,238.53,238.45,56.49259893]
[1731972661991,2.77,238.53,238.52,20.0]
[1731972662285,0.4750199,238.55,238.54,20.0]
[1731972662487,0.4750199,238.55,238.54,56.71176355]
[1731972662878,0.4750199,238.55,238.54,56.83725355]
[1731972663285,0.4750199,238.55,238.54,69.55296848]
[1731972663493,0.4750199,238.55,238.54,70.05296848]
[1731972663686,12.71571493,238.7,238.58,0.12549]
[1731972663998,12.71571493,238.7,238.62,12.71571493]
[1731972664371,4.6628199,238.79,238.68,20.0]
[1731972664569,4.6628199,238.79,238.69,20.21776318]
[1731972664570,20.21776318,238.78,238.69,20.21776318]
[1731972665398,20.21776318,238.78,238.68,23.776884]
[1731972665596,20.21776318,238.78,238.69,20.21776318]
[1731972668095,20.21776318,238.78,238.66,0.25098]
[1731972668096,0.4750199,238.79,238.73,20.21776318]
[1731972668278,0.4750199,238.79,238.74,20.0]
[1731972668682,0.4750199,238.79,238.75,20.21776318]
[1731972668978,0.4750199,238.79,238.76,20.0]
[1731972669181,0.4750199,238.79,238.71,20.4369278]
[1731972669498,0.4750199,238.79,238.72,20.0]
[1731972670586,20.21776318,238.78,238.69,20.21776318]
[1731972670792,20.21776318,238.72,238.65,20.21776318]
[1731972670993,20.21776318,238.7,238.63,20.21776318]
[1731972671187,20.21776318,238.7,238.61,20.21776318]
[1731972671599,20.21776318,238.66,238.59,6.8212]
[1731972671899,20.21776318,238.62,238.54,22.5183]
[1731972672622,20.21776318,238.62,238.54,6.8896]
[1731972672795,20.21776318,238.62,238.55,20.21776318]
[1731972673497,20.21776318,238.66,238.57,20.21776318]
[1731972673704,20.21776318,238.68,238.59,20.21776318]
[1731972673887,20.21776318,238.68,238.6,23.99604862]
[1731972674092,20.21776318,238.68,238.59,20.21776318]
[1731972674311,20.21776318,238.68,238.54,6.8896]
[1731972674312,20.21776318,238.65,238.57,20.21776318]
[1731972674509,20.21776318,238.67,238.58,43.776884]
[1731972675215,20.21776318,238.67,238.6,20.0]
[1731972675387,4.1892,238.71,238.6,20.0]
[1731972675715,19.71776318,238.68,238.6,40.21776318]
[1731972676413,20.21776318,238.7,238.62,20.21776318]
[1731972676620,20.21776318,238.72,238.64,20.21776318]
[1731972677191,22.7453,238.78,238.61,0.34465462]
[1731972677192,20.21776318,238.76,238.66,20.21776318]
[1731972677510,20.21776318,238.76,238.68,20.21776318]
[1731972678714,20.21776318,238.76,238.69,20.0]
[1731972679421,20.21776318,238.82,238.73,20.0]
[1731972679602,20.21776318,238.82,238.75,20.0]
[1731972679996,20.21776318,238.84,238.76,20.21776318]
[1731972680613,20.21776318,238.86,238.78,20.21776318]
[1731972680917,20.21776318,238.86,238.78,40.21776318]
[1731972682011,20.21776318,238.88,238.78,40.21776318]
[1731972682213,20.21776318,238.86,238.78,40.21776318]
[1731972682711,20.21776318,238.86,238.68,26.65026318]
[1731972682712,20.21776318,238.82,238.74,20.21776318]
[1731972682914,20.21776318,238.82,238.68,26.65026318]
[1731972682915,20.21776318,238.8,238.72,20.21776318]